[Event "Late-Titled-Tuesday-Blitz-June-04-2024"]
[Site "Chess.com"]
[Date "2024.06.04"]
[Round "9"]
[White "mostafa_sakha"]
[Black "xakevicius91"]
[Result "0-1"]
[WhiteElo "2401"]
[BlackElo "2563"]
[TimeControl "180+1"]
[EndTime "15:42:35 PDT"]
[Termination "xakevicius91 won on time"]

1. d4 {[%clk 0:03:00]} 1... Nf6 {[%clk 0:02:59.8]} 2. c4 {[%clk 0:02:59.7]} 2...
e6 {[%clk 0:02:59.8]} 3. Nc3 {[%clk 0:02:59.9]} 3... Bb4 {[%clk 0:02:59.7]} 4.
e3 {[%clk 0:03:00.4]} 4... O-O {[%clk 0:02:59.2]} 5. Bd3 {[%clk 0:03:01]} 5...
c5 {[%clk 0:02:59.9]} 6. Nf3 {[%clk 0:03:01.1]} 6... Bxc3+ {[%clk 0:02:58.8]} 7.
bxc3 {[%clk 0:03:01.5]} 7... d6 {[%clk 0:02:59.7]} 8. O-O {[%clk 0:02:54.5]}
8... Nc6 {[%clk 0:02:59.2]} 9. e4 {[%clk 0:02:35.7]} 9... e5 {[%clk 0:02:58.2]}
10. Bg5 {[%clk 0:02:28.8]} 10... h6 {[%clk 0:02:31.7]} 11. Bh4 {[%clk
0:02:28.2]} 11... Bg4 {[%clk 0:02:25.7]} 12. d5 {[%clk 0:02:26.3]} 12... Nb8
{[%clk 0:02:23.1]} 13. h3 {[%clk 0:02:18.2]} 13... Bh5 {[%clk 0:02:20.2]} 14. g4
{[%clk 0:02:17.5]} 14... Bg6 {[%clk 0:02:14.8]} 15. Ne1 {[%clk 0:02:08.7]} 15...
Nbd7 {[%clk 0:02:12.9]} 16. Ng2 {[%clk 0:01:59.5]} 16... Qa5 {[%clk 0:02:11.3]}
17. Qc2 {[%clk 0:01:54]} 17... Bh7 {[%clk 0:02:09.6]} 18. Ne3 {[%clk 0:01:49.6]}
18... g5 {[%clk 0:02:06.7]} 19. Bg3 {[%clk 0:01:49.3]} 19... Rae8 {[%clk
0:02:05.6]} 20. f3 {[%clk 0:01:44.8]} 20... Kg7 {[%clk 0:02:03.4]} 21. h4 {[%clk
0:01:44.2]} 21... Ng8 {[%clk 0:02:02.9]} 22. Kg2 {[%clk 0:01:39.7]} 22... Qd8
{[%clk 0:01:57.1]} 23. Rh1 {[%clk 0:01:39]} 23... Bg6 {[%clk 0:01:56.7]} 24. Rh2
{[%clk 0:01:37.6]} 24... f6 {[%clk 0:01:56.9]} 25. Rah1 {[%clk 0:01:36.8]} 25...
b6 {[%clk 0:01:53.6]} 26. Be1 {[%clk 0:01:33.4]} 26... Kf7 {[%clk 0:01:53.4]}
27. Qf2 {[%clk 0:01:27.7]} 27... Ke7 {[%clk 0:01:53.1]} 28. Bd2 {[%clk
0:01:25.7]} 28... Nb8 {[%clk 0:01:51.7]} 29. a4 {[%clk 0:01:18.4]} 29... Qc7
{[%clk 0:01:41.3]} 30. hxg5 {[%clk 0:01:11.8]} 30... fxg5 {[%clk 0:01:37.9]} 31.
Rxh6 {[%clk 0:01:11.3]} 31... Nxh6 {[%clk 0:01:37.4]} 32. Rxh6 {[%clk
0:01:12.2]} 32... Rf6 {[%clk 0:01:32.7]} 33. Nf5+ {[%clk 0:01:03.9]} 33... Bxf5
{[%clk 0:01:32.5]} 34. Bxg5 {[%clk 0:01:03.1]} 34... Nd7 {[%clk 0:01:32.7]} 35.
gxf5 {[%clk 0:00:56.2]} 35... Rg8 {[%clk 0:01:32]} 36. Qh4 {[%clk 0:00:53.9]}
36... Ke8 {[%clk 0:01:24.7]} 37. Rxf6 {[%clk 0:00:44.4]} 37... Nxf6 {[%clk
0:01:22.8]} 38. Kf2 {[%clk 0:00:43.7]} 38... Nh7 {[%clk 0:01:14.9]} 39. f4
{[%clk 0:00:29.2]} 39... exf4 {[%clk 0:01:13]} 40. Bxf4 {[%clk 0:00:28.6]} 40...
Qg7 {[%clk 0:01:10.6]} 41. Bg3 {[%clk 0:00:08.4]} 41... Nf6 {[%clk 0:01:06]} 42.
Kf3 {[%clk 0:00:03.7]} 42... Kd7 {[%clk 0:01:01.6]} 43. Qf4 {[%clk 0:00:01.4]}
43... Ne8 {[%clk 0:00:56.5]} 0-1

[Event "Late-Titled-Tuesday-Blitz-June-04-2024"]
[Site "Chess.com"]
[Date "2024.06.04"]
[Round "9"]
[White "nitpicker"]
[Black "Attacker_2006"]
[Result "0-1"]
[WhiteElo "2315"]
[BlackElo "2503"]
[TimeControl "180+1"]
[EndTime "15:42:37 PDT"]
[Termination "Attacker_2006 won on time"]

1. d4 {[%clk 0:03:00.9]} 1... d5 {[%clk 0:01:02.3]} 2. c4 {[%clk 0:02:59.1]}
2... e6 {[%clk 0:01:02.6]} 3. Nf3 {[%clk 0:02:58.7]} 3... Nf6 {[%clk 0:01:03.1]}
4. g3 {[%clk 0:02:58.9]} 4... Nbd7 {[%clk 0:01:03.5]} 5. Qc2 {[%clk 0:02:58]}
5... Bb4+ {[%clk 0:01:03.9]} 6. Bd2 {[%clk 0:02:57.2]} 6... Bxd2+ {[%clk
0:01:03.6]} 7. Nbxd2 {[%clk 0:02:57.2]} 7... c6 {[%clk 0:01:04.5]} 8. Bg2 {[%clk
0:02:56.8]} 8... O-O {[%clk 0:01:04.9]} 9. O-O {[%clk 0:02:57.3]} 9... Qc7
{[%clk 0:01:04.5]} 10. Rfd1 {[%clk 0:02:56.6]} 10... b6 {[%clk 0:01:03.7]} 11.
e4 {[%clk 0:02:56]} 11... Bb7 {[%clk 0:01:03.5]} 12. cxd5 {[%clk 0:02:47.3]}
12... exd5 {[%clk 0:01:02.3]} 13. e5 {[%clk 0:02:47.1]} 13... Ne8 {[%clk
0:01:01.5]} 14. Ng5 {[%clk 0:02:38.4]} 14... g6 {[%clk 0:01:01.4]} 15. e6 {[%clk
0:02:22.8]} 15... fxe6 {[%clk 0:00:54.1]} 16. Nxe6 {[%clk 0:02:20.9]} 16... Qd6
{[%clk 0:00:52.3]} 17. Nxf8 {[%clk 0:02:21.2]} 17... Qxf8 {[%clk 0:00:53]} 18.
Qd3 {[%clk 0:02:03]} 18... Nd6 {[%clk 0:00:53]} 19. Re1 {[%clk 0:01:57.1]} 19...
Nf6 {[%clk 0:00:51.8]} 20. Rac1 {[%clk 0:01:30.1]} 20... a5 {[%clk 0:00:47.5]}
21. Qf3 {[%clk 0:01:15.9]} 21... Nf5 {[%clk 0:00:47]} 22. Qf4 {[%clk 0:01:13.4]}
22... Nh5 {[%clk 0:00:42.2]} 23. Qe5 {[%clk 0:01:11.4]} 23... Nf6 {[%clk
0:00:40.8]} 24. h3 {[%clk 0:01:04.8]} 24... Re8 {[%clk 0:00:40.3]} 25. Qc7
{[%clk 0:01:01]} 25... Rxe1+ {[%clk 0:00:36.8]} 26. Rxe1 {[%clk 0:01:00.1]}
26... Ba6 {[%clk 0:00:30.3]} 27. Qxb6 {[%clk 0:00:58.6]} 27... Bd3 {[%clk
0:00:28]} 28. Qxc6 {[%clk 0:00:55.4]} 28... Nxd4 {[%clk 0:00:26.4]} 29. Bxd5+
{[%clk 0:00:46.6]} 29... Kh8 {[%clk 0:00:22.4]} 30. Qc5 {[%clk 0:00:38.7]} 30...
Qxc5 {[%clk 0:00:20.6]} 0-1

[Event "Late-Titled-Tuesday-Blitz-June-04-2024"]
[Site "Chess.com"]
[Date "2024.06.04"]
[Round "9"]
[White "1g60-1"]
[Black "N_I_Chess"]
[Result "1-0"]
[WhiteElo "2446"]
[BlackElo "2291"]
[TimeControl "180+1"]
[EndTime "15:42:37 PDT"]
[Termination "1g60-1 won on time"]

1. e4 {[%clk 0:03:00.9]} 1... Nf6 {[%clk 0:02:56.4]} 2. e5 {[%clk 0:03:00]} 2...
Nd5 {[%clk 0:02:56.3]} 3. Nc3 {[%clk 0:03:00.4]} 3... Nb6 {[%clk 0:02:49.7]} 4.
Nf3 {[%clk 0:03:00.3]} 4... d5 {[%clk 0:02:47]} 5. d4 {[%clk 0:02:59.6]} 5...
Bf5 {[%clk 0:02:45.5]} 6. Be3 {[%clk 0:02:58.3]} 6... h6 {[%clk 0:02:43.7]} 7.
Be2 {[%clk 0:02:55.1]} 7... e6 {[%clk 0:02:43.6]} 8. O-O {[%clk 0:02:54.3]} 8...
N8d7 {[%clk 0:02:43.4]} 9. Nd2 {[%clk 0:02:52.2]} 9... c5 {[%clk 0:02:41.9]} 10.
Nf3 {[%clk 0:02:43.2]} 10... Rc8 {[%clk 0:02:37.9]} 11. Nb5 {[%clk 0:02:42.3]}
11... a6 {[%clk 0:02:32.1]} 12. Na3 {[%clk 0:02:42.5]} 12... Be7 {[%clk
0:02:22]} 13. c3 {[%clk 0:02:42.4]} 13... O-O {[%clk 0:02:18.8]} 14. Nb1 {[%clk
0:02:38.6]} 14... f6 {[%clk 0:02:05.8]} 15. exf6 {[%clk 0:02:36.7]} 15... Bxf6
{[%clk 0:02:00.7]} 16. dxc5 {[%clk 0:02:35.7]} 16... Nxc5 {[%clk 0:02:00.1]} 17.
Nd4 {[%clk 0:02:36.1]} 17... Be5 {[%clk 0:01:49.8]} 18. Nxf5 {[%clk 0:02:26.5]}
18... Rxf5 {[%clk 0:01:49.2]} 19. Bg4 {[%clk 0:02:21.9]} 19... Rf6 {[%clk
0:01:45.8]} 20. Nd2 {[%clk 0:02:19.5]} 20... Qe7 {[%clk 0:01:37.9]} 21. Nf3
{[%clk 0:02:14.3]} 21... Bd6 {[%clk 0:01:35]} 22. Re1 {[%clk 0:02:14.2]} 22...
Rcf8 {[%clk 0:01:26.4]} 23. b4 {[%clk 0:02:10.8]} 23... Ncd7 {[%clk 0:01:25.2]}
24. Bd4 {[%clk 0:02:06.4]} 24... e5 {[%clk 0:01:05]} 25. Bxb6 {[%clk 0:02:00.4]}
25... Nxb6 {[%clk 0:01:03.6]} 26. a4 {[%clk 0:01:47.6]} 26... e4 {[%clk
0:00:48.8]} 27. a5 {[%clk 0:01:47.6]} 27... Qf7 {[%clk 0:00:24]} 28. axb6 {[%clk
0:01:43.2]} 28... exf3 {[%clk 0:00:24]} 29. Bxf3 {[%clk 0:01:43.6]} 29... Rf5
{[%clk 0:00:14.7]} 30. Ra5 {[%clk 0:01:38.3]} 30... Rd8 {[%clk 0:00:13.4]} 31.
Qd4 {[%clk 0:01:15.8]} 31... Bb8 {[%clk 0:00:07.7]} 32. c4 {[%clk 0:00:59.3]}
32... Kh8 {[%clk 0:00:06.2]} 33. Rxd5 {[%clk 0:00:55.5]} 33... Rfxd5 {[%clk
0:00:04.7]} 34. Bxd5 {[%clk 0:00:52.1]} 34... Qd7 {[%clk 0:00:04.2]} 35. Qe3
{[%clk 0:00:45.3]} 35... Qd6 {[%clk 0:00:03.9]} 36. g3 {[%clk 0:00:45.5]} 36...
Qxb4 {[%clk 0:00:02.1]} 37. Qe7 {[%clk 0:00:32.3]} 1-0

[Event "Late-Titled-Tuesday-Blitz-June-04-2024"]
[Site "Chess.com"]
[Date "2024.06.04"]
[Round "9"]
[White "malti"]
[Black "Timurist"]
[Result "0-1"]
[WhiteElo "2146"]
[BlackElo "2347"]
[TimeControl "180+1"]
[EndTime "15:42:41 PDT"]
[Termination "Timurist won by resignation"]

1. e4 {[%clk 0:02:51.6]} 1... c5 {[%clk 0:02:59.8]} 2. Nf3 {[%clk 0:02:51]} 2...
Nc6 {[%clk 0:02:59.4]} 3. d4 {[%clk 0:02:51.4]} 3... cxd4 {[%clk 0:03:00.3]} 4.
Nxd4 {[%clk 0:02:52]} 4... g6 {[%clk 0:03:01.2]} 5. Nc3 {[%clk 0:02:50.8]} 5...
Bg7 {[%clk 0:03:01.3]} 6. Be3 {[%clk 0:02:51.4]} 6... Nf6 {[%clk 0:03:01.2]} 7.
Bc4 {[%clk 0:02:51.5]} 7... Qa5 {[%clk 0:03:00.3]} 8. O-O {[%clk 0:02:50]} 8...
O-O {[%clk 0:02:59.8]} 9. Bb3 {[%clk 0:02:50.1]} 9... d6 {[%clk 0:02:59.6]} 10.
h3 {[%clk 0:02:49.6]} 10... Bd7 {[%clk 0:03:00]} 11. Re1 {[%clk 0:02:47.6]}
11... Nxd4 {[%clk 0:02:51.8]} 12. Bxd4 {[%clk 0:02:48.5]} 12... Bc6 {[%clk
0:02:52.1]} 13. Qd3 {[%clk 0:02:03.4]} 13... Rfe8 {[%clk 0:02:49.2]} 14. Rad1
{[%clk 0:01:52.2]} 14... Rac8 {[%clk 0:02:46.5]} 15. Nd5 {[%clk 0:01:49.5]}
15... Bxd5 {[%clk 0:02:37.8]} 16. exd5 {[%clk 0:01:46.8]} 16... Nd7 {[%clk
0:02:15.8]} 17. Bxg7 {[%clk 0:01:45.1]} 17... Kxg7 {[%clk 0:02:16.7]} 18. c3
{[%clk 0:01:40.8]} 18... Kg8 {[%clk 0:02:12.4]} 19. Qd4 {[%clk 0:01:31.6]} 19...
Qc5 {[%clk 0:02:09.8]} 20. Ba4 {[%clk 0:01:19]} 20... Qxd4 {[%clk 0:01:53.7]}
21. Rxd4 {[%clk 0:01:19.9]} 21... Rc7 {[%clk 0:01:54.1]} 22. Bxd7 {[%clk
0:01:16]} 22... Rxd7 {[%clk 0:01:54.3]} 23. Rc4 {[%clk 0:00:58.7]} 23... e6
{[%clk 0:01:39.3]} 24. f3 {[%clk 0:00:58.8]} 24... Rde7 {[%clk 0:01:35.8]} 25.
dxe6 {[%clk 0:00:59]} 25... fxe6 {[%clk 0:01:36.7]} 26. Kf2 {[%clk 0:00:52.6]}
26... Kf7 {[%clk 0:01:35.8]} 27. Rf4+ {[%clk 0:00:51.4]} 27... Kg7 {[%clk
0:01:35.5]} 28. Rd4 {[%clk 0:00:41.1]} 28... Rd7 {[%clk 0:01:33.5]} 29. Rf4
{[%clk 0:00:27.8]} 29... g5 {[%clk 0:01:32.2]} 30. Ra4 {[%clk 0:00:24.2]} 30...
a6 {[%clk 0:01:31.8]} 31. h4 {[%clk 0:00:24.7]} 31... h6 {[%clk 0:01:31.4]} 32.
hxg5 {[%clk 0:00:24.8]} 32... hxg5 {[%clk 0:01:32.3]} 33. Ree4 {[%clk
0:00:23.2]} 33... e5 {[%clk 0:01:29.7]} 34. Rg4 {[%clk 0:00:17.4]} 34... Kf6
{[%clk 0:01:29.7]} 35. g3 {[%clk 0:00:16.3]} 35... Kf5 {[%clk 0:01:25.6]} 36.
Ke3 {[%clk 0:00:15.9]} 36... d5 {[%clk 0:01:25.6]} 37. Rgb4 {[%clk 0:00:14.8]}
37... d4+ {[%clk 0:01:16.6]} 38. Kd2 {[%clk 0:00:15.2]} 38... dxc3+ {[%clk
0:01:13.4]} 39. Kxc3 {[%clk 0:00:16.1]} 39... Red8 {[%clk 0:01:12.9]} 40. g4+
{[%clk 0:00:15.4]} 40... Kf6 {[%clk 0:01:08.8]} 41. Rb6+ {[%clk 0:00:16.3]}
41... Kf7 {[%clk 0:01:01.6]} 42. Rab4 {[%clk 0:00:17.2]} 42... Rd3+ {[%clk
0:01:01]} 43. Kc2 {[%clk 0:00:15.6]} 43... Rd2+ {[%clk 0:01:00.6]} 44. Kb3
{[%clk 0:00:16]} 44... R8d3+ {[%clk 0:01:00.5]} 45. Ka4 {[%clk 0:00:16.5]} 45...
Rxf3 {[%clk 0:00:59.8]} 46. Rxb7+ {[%clk 0:00:17]} 46... Kg6 {[%clk 0:00:59.9]}
47. R4b6+ {[%clk 0:00:17.3]} 47... Rf6 {[%clk 0:01:00.4]} 48. Ka5 {[%clk
0:00:16.2]} 48... e4 {[%clk 0:00:57.6]} 49. Rxf6+ {[%clk 0:00:15.9]} 49... Kxf6
{[%clk 0:00:58.5]} 50. Rb6+ {[%clk 0:00:16]} 50... Ke5 {[%clk 0:00:58.6]} 51.
Kxa6 {[%clk 0:00:16.2]} 51... Rd6 {[%clk 0:00:56.1]} 52. Rxd6 {[%clk 0:00:15.6]}
52... Kxd6 {[%clk 0:00:56.3]} 53. Kb5 {[%clk 0:00:16.5]} 53... e3 {[%clk
0:00:57.1]} 0-1

[Event "Late-Titled-Tuesday-Blitz-June-04-2024"]
[Site "Chess.com"]
[Date "2024.06.04"]
[Round "9"]
[White "jucAxx"]
[Black "Alphafischer2019"]
[Result "1-0"]
[WhiteElo "2439"]
[BlackElo "2621"]
[TimeControl "180+1"]
[EndTime "15:42:48 PDT"]
[Termination "jucAxx won by resignation"]

1. e4 {[%clk 0:02:42.9]} 1... e6 {[%clk 0:02:58.9]} 2. Nf3 {[%clk 0:02:42.4]}
2... d5 {[%clk 0:02:58.6]} 3. e5 {[%clk 0:02:42.7]} 3... c5 {[%clk 0:02:57.2]}
4. b4 {[%clk 0:02:43.3]} 4... cxb4 {[%clk 0:02:53]} 5. a3 {[%clk 0:02:43.8]}
5... b3 {[%clk 0:02:48.8]} 6. cxb3 {[%clk 0:02:43.5]} 6... Nc6 {[%clk
0:02:49.4]} 7. d4 {[%clk 0:02:43.5]} 7... Nge7 {[%clk 0:02:50]} 8. Bd3 {[%clk
0:02:43.4]} 8... Nf5 {[%clk 0:02:50.5]} 9. Bxf5 {[%clk 0:02:42.9]} 9... exf5
{[%clk 0:02:51.4]} 10. O-O {[%clk 0:02:43.1]} 10... Be6 {[%clk 0:02:51.6]} 11.
Bg5 {[%clk 0:02:39]} 11... Qb6 {[%clk 0:02:50.4]} 12. Nc3 {[%clk 0:02:38]} 12...
h6 {[%clk 0:02:50.1]} 13. Be3 {[%clk 0:02:37.2]} 13... Be7 {[%clk 0:02:49.3]}
14. Na4 {[%clk 0:02:37.1]} 14... Qd8 {[%clk 0:02:45.1]} 15. Nc5 {[%clk
0:02:37.1]} 15... b6 {[%clk 0:02:35.5]} 16. Nxe6 {[%clk 0:02:35.7]} 16... fxe6
{[%clk 0:02:36.4]} 17. Rc1 {[%clk 0:02:32.5]} 17... Rc8 {[%clk 0:02:35.4]} 18.
a4 {[%clk 0:02:30.1]} 18... Kf7 {[%clk 0:02:30.8]} 19. Nd2 {[%clk 0:02:28.4]}
19... Qd7 {[%clk 0:02:26.7]} 20. Qh5+ {[%clk 0:02:21.5]} 20... g6 {[%clk
0:02:26.3]} 21. Qh3 {[%clk 0:02:22.1]} 21... Bg5 {[%clk 0:02:20.9]} 22. Bxg5
{[%clk 0:02:20]} 22... hxg5 {[%clk 0:02:20.3]} 23. Qe3 {[%clk 0:02:13.4]} 23...
Qe7 {[%clk 0:02:20]} 24. Nf3 {[%clk 0:02:12.5]} 24... g4 {[%clk 0:02:13.6]} 25.
Ng5+ {[%clk 0:01:58.6]} 25... Kg7 {[%clk 0:02:12.7]} 26. f4 {[%clk 0:01:59]}
26... Nb4 {[%clk 0:02:02.9]} 27. Rxc8 {[%clk 0:01:46.5]} 27... Rxc8 {[%clk
0:02:00.9]} 28. Rc1 {[%clk 0:01:47.1]} 28... Qd7 {[%clk 0:02:00.7]} 29. h4
{[%clk 0:01:37.5]} 29... Rc6 {[%clk 0:01:53.5]} 30. Rxc6 {[%clk 0:01:37]} 30...
Qxc6 {[%clk 0:01:52.4]} 31. Qd2 {[%clk 0:01:25.8]} 31... a5 {[%clk 0:01:51.2]}
32. Kh2 {[%clk 0:01:22.9]} 32... Kf8 {[%clk 0:01:46.2]} 33. Qf2 {[%clk
0:01:19.9]} 33... Ke7 {[%clk 0:01:44.8]} 34. h5 {[%clk 0:01:20.5]} 34... gxh5
{[%clk 0:01:43.8]} 35. Qh4 {[%clk 0:01:21]} 35... Kd7 {[%clk 0:01:42]} 36. Qxh5
{[%clk 0:01:20.9]} 36... Kd8 {[%clk 0:01:11]} 37. Qf7 {[%clk 0:01:13.1]} 37...
Qd7 {[%clk 0:01:10.6]} 38. Nxe6+ {[%clk 0:00:36]} 38... Kc8 {[%clk 0:01:09.9]}
39. Qxf5 {[%clk 0:00:33.9]} 39... Kb8 {[%clk 0:00:59.6]} 40. Qf8+ {[%clk
0:00:32.4]} 40... Ka7 {[%clk 0:00:58.4]} 41. Qg7 {[%clk 0:00:26.7]} 41... Qxg7
{[%clk 0:00:58.2]} 42. Nxg7 {[%clk 0:00:27.6]} 42... Nc6 {[%clk 0:00:58.6]} 43.
Ne6 {[%clk 0:00:26.9]} 43... Ka6 {[%clk 0:00:56.1]} 44. Kg3 {[%clk 0:00:27.1]}
44... b5 {[%clk 0:00:56.1]} 45. axb5+ {[%clk 0:00:28]} 45... Kxb5 {[%clk
0:00:56.5]} 46. Kxg4 {[%clk 0:00:28.4]} 46... Kb4 {[%clk 0:00:57.1]} 47. f5
{[%clk 0:00:27]} 47... Kxb3 {[%clk 0:00:57.6]} 48. f6 {[%clk 0:00:27.5]} 48...
a4 {[%clk 0:00:57.7]} 49. f7 {[%clk 0:00:27.7]} 49... a3 {[%clk 0:00:58.1]} 50.
f8=Q {[%clk 0:00:28.1]} 50... a2 {[%clk 0:00:58.9]} 51. Qa8 {[%clk 0:00:28.6]}
51... Nb4 {[%clk 0:00:57.6]} 52. Nc5+ {[%clk 0:00:27.3]} 52... Kb2 {[%clk
0:00:57.6]} 53. Qb7 {[%clk 0:00:25.7]} 53... Kc3 {[%clk 0:00:55.1]} 54. Qa7
{[%clk 0:00:23.6]} 54... Kb2 {[%clk 0:00:54.5]} 55. Qb6 {[%clk 0:00:23.8]} 55...
Kc3 {[%clk 0:00:54.6]} 56. Qa5 {[%clk 0:00:24]} 56... a1=Q {[%clk 0:00:54.5]}
57. Qxa1+ {[%clk 0:00:23.7]} 1-0

[Event "Late-Titled-Tuesday-Blitz-June-04-2024"]
[Site "Chess.com"]
[Date "2024.06.04"]
[Round "9"]
[White "King_Deded4d5"]
[Black "MuhittinBuker"]
[Result "0-1"]
[WhiteElo "2430"]
[BlackElo "2267"]
[TimeControl "180+1"]
[EndTime "15:42:48 PDT"]
[Termination "MuhittinBuker won on time"]

1. d4 {[%clk 0:02:59.5]} 1... Nf6 {[%clk 0:02:59.2]} 2. Nf3 {[%clk 0:02:59.3]}
2... e6 {[%clk 0:02:59.5]} 3. Bf4 {[%clk 0:02:59]} 3... d5 {[%clk 0:02:59.8]} 4.
e3 {[%clk 0:02:59.6]} 4... Bd6 {[%clk 0:03:00.1]} 5. Nbd2 {[%clk 0:03:00]} 5...
O-O {[%clk 0:03:00.5]} 6. h4 {[%clk 0:02:59.8]} 6... Bxf4 {[%clk 0:03:00.4]} 7.
exf4 {[%clk 0:03:00.7]} 7... c5 {[%clk 0:02:59]} 8. dxc5 {[%clk 0:03:01.6]} 8...
Qc7 {[%clk 0:02:58.7]} 9. g3 {[%clk 0:02:59.1]} 9... Qxc5 {[%clk 0:02:58.6]} 10.
Bd3 {[%clk 0:02:57]} 10... Nc6 {[%clk 0:02:56.8]} 11. c3 {[%clk 0:02:35.2]}
11... b5 {[%clk 0:02:54.9]} 12. a3 {[%clk 0:02:12.4]} 12... a5 {[%clk
0:02:55.8]} 13. h5 {[%clk 0:02:06.1]} 13... h6 {[%clk 0:02:55.1]} 14. Qe2 {[%clk
0:02:02]} 14... Rb8 {[%clk 0:02:45.7]} 15. Nb3 {[%clk 0:01:49.2]} 15... Qb6
{[%clk 0:02:45]} 16. Ne5 {[%clk 0:01:48.9]} 16... Ne7 {[%clk 0:02:21.3]} 17. O-O
{[%clk 0:01:41]} 17... Rd8 {[%clk 0:02:18.9]} 18. g4 {[%clk 0:01:05.6]} 18... b4
{[%clk 0:02:02.4]} 19. cxb4 {[%clk 0:01:06.5]} 19... axb4 {[%clk 0:02:01.5]} 20.
a4 {[%clk 0:01:07.4]} 20... Ne4 {[%clk 0:01:55.8]} 21. a5 {[%clk 0:00:55.2]}
21... Qa7 {[%clk 0:01:51.3]} 22. Qe3 {[%clk 0:00:39.5]} 22... Qa8 {[%clk
0:01:33]} 23. a6 {[%clk 0:00:25.6]} 23... Bd7 {[%clk 0:01:22.7]} 24. Nc5 {[%clk
0:00:09.1]} 24... Nxc5 {[%clk 0:01:16.1]} 25. Qxc5 {[%clk 0:00:10]} 25... Nc6
{[%clk 0:01:05.8]} 26. Rfc1 {[%clk 0:00:06.1]} 26... Nxe5 {[%clk 0:01:05]} 27.
fxe5 {[%clk 0:00:07]} 27... d4 {[%clk 0:01:01.6]} 28. a7 {[%clk 0:00:06.2]}
28... Rbc8 {[%clk 0:01:00.6]} 29. Qxd4 {[%clk 0:00:05.4]} 29... Bc6 {[%clk
0:00:55.2]} 30. Qe3 {[%clk 0:00:03.7]} 30... Bh1 {[%clk 0:00:53.8]} 31. Bf1
{[%clk 0:00:03.2]} 31... Bf3 {[%clk 0:00:52.6]} 32. Rxc8 {[%clk 0:00:02.9]}
32... Rxc8 {[%clk 0:00:52.1]} 33. Qf4 {[%clk 0:00:02.8]} 33... Rc7 {[%clk
0:00:43.7]} 34. Qg3 {[%clk 0:00:03.1]} 34... Bd5 {[%clk 0:00:42]} 35. Bg2 {[%clk
0:00:02.3]} 35... Rxa7 {[%clk 0:00:39.2]} 36. Rxa7 {[%clk 0:00:03.2]} 36... Qxa7
{[%clk 0:00:38.6]} 37. Bxd5 {[%clk 0:00:04.1]} 37... exd5 {[%clk 0:00:38.4]} 38.
Qb3 {[%clk 0:00:04.8]} 38... Qd4 {[%clk 0:00:37.5]} 39. Qa4 {[%clk 0:00:02.5]}
39... Qxg4+ {[%clk 0:00:37.4]} 0-1

[Event "Late-Titled-Tuesday-Blitz-June-04-2024"]
[Site "Chess.com"]
[Date "2024.06.04"]
[Round "9"]
[White "EDaMatta"]
[Black "lluiss"]
[Result "1-0"]
[WhiteElo "2319"]
[BlackElo "2207"]
[TimeControl "180+1"]
[EndTime "15:42:50 PDT"]
[Termination "EDaMatta won on time"]

1. d4 {[%clk 0:03:00.9]} 1... Nf6 {[%clk 0:02:55]} 2. c4 {[%clk 0:03:00.6]} 2...
g6 {[%clk 0:02:54.9]} 3. Nc3 {[%clk 0:03:00.9]} 3... d5 {[%clk 0:02:54.8]} 4.
Bf4 {[%clk 0:03:00]} 4... Bg7 {[%clk 0:02:53.9]} 5. e3 {[%clk 0:02:59.6]} 5...
O-O {[%clk 0:02:52]} 6. Rc1 {[%clk 0:03:00]} 6... c6 {[%clk 0:02:10.1]} 7. Nf3
{[%clk 0:02:55]} 7... Nbd7 {[%clk 0:02:07.1]} 8. h3 {[%clk 0:02:54.5]} 8... Ne4
{[%clk 0:01:59.7]} 9. cxd5 {[%clk 0:02:51.1]} 9... Nxc3 {[%clk 0:01:58.7]} 10.
bxc3 {[%clk 0:02:52]} 10... cxd5 {[%clk 0:01:58.6]} 11. Bd3 {[%clk 0:02:47.4]}
11... Nb6 {[%clk 0:01:58.1]} 12. O-O {[%clk 0:02:35.5]} 12... h6 {[%clk
0:01:56.9]} 13. Qb3 {[%clk 0:02:29]} 13... Be6 {[%clk 0:01:56]} 14. Ne5 {[%clk
0:02:22.5]} 14... Rc8 {[%clk 0:01:39.4]} 15. a4 {[%clk 0:02:21.7]} 15... Bxe5
{[%clk 0:01:31.9]} 16. Bxe5 {[%clk 0:02:12]} 16... Qd7 {[%clk 0:01:31.6]} 17. a5
{[%clk 0:01:51.5]} 17... Nc4 {[%clk 0:01:30.6]} 18. a6 {[%clk 0:01:49.2]} 18...
b6 {[%clk 0:01:23.9]} 19. Qc2 {[%clk 0:01:43.8]} 19... Nxe5 {[%clk 0:01:16.2]}
20. dxe5 {[%clk 0:01:42.5]} 20... Kg7 {[%clk 0:01:16.5]} 21. f4 {[%clk
0:01:40.5]} 21... Bf5 {[%clk 0:01:14.8]} 22. e4 {[%clk 0:01:36]} 22... dxe4
{[%clk 0:01:02]} 23. Bxe4 {[%clk 0:01:36.9]} 23... Rfd8 {[%clk 0:00:58.4]} 24.
g4 {[%clk 0:01:03.8]} 24... Bxe4 {[%clk 0:00:57.4]} 25. Qxe4 {[%clk 0:01:04.7]}
25... Qd3 {[%clk 0:00:55.2]} 26. Qf3 {[%clk 0:00:56.1]} 26... Qxa6 {[%clk
0:00:44.1]} 27. f5 {[%clk 0:00:43.5]} 27... Rd3 {[%clk 0:00:25.6]} 28. Qf2
{[%clk 0:00:34.3]} 28... Qc4 {[%clk 0:00:11.2]} 29. f6+ {[%clk 0:00:30.6]} 29...
exf6 {[%clk 0:00:11.2]} 30. Qxf6+ {[%clk 0:00:29.8]} 30... Kg8 {[%clk
0:00:11.4]} 31. Rf4 {[%clk 0:00:16.4]} 31... Rg3+ {[%clk 0:00:09.6]} 32. Kh2
{[%clk 0:00:16.3]} 32... Rd3 {[%clk 0:00:07.4]} 33. Rxc4 {[%clk 0:00:15.6]}
33... Rxc4 {[%clk 0:00:04.6]} 34. e6 {[%clk 0:00:15.5]} 1-0